fUSD/lending_fUSD_20260214
["ID","MTS","AMOUNT","RATE_DAILY","PERIOD"]
[405360796,1771086641215,-1761.42138516,0.00017177,2]
[405360798,1771086641224,-1761.42138516,0.00017177,2]
[405360800,1771086641233,-1761.42138516,0.00017177,2]
[405360802,1771086641243,-1761.42138516,0.00017177,2]
[405360804,1771086641253,-1761.42138516,0.00017177,2]
[405360806,1771086641262,-1761.42138516,0.00017177,2]
[405360808,1771086641271,-1761.42138516,0.00017177,2]
[405360810,1771086641280,-1761.42138516,0.00017177,2]
[405360812,1771086641288,-1761.42138516,0.00017177,2]
[405360814,1771086641297,-1761.42138516,0.00017177,2]
[405360816,1771086641306,-1761.42138516,0.00017177,2]
[405360818,1771086641315,-1761.42138516,0.00017177,2]
[405360820,1771086641324,-1761.42138516,0.00017177,2]
[405360822,1771086641333,-1761.42138516,0.00017177,2]
[405360824,1771086641342,-1761.42138516,0.00017177,2]
[405360826,1771086641351,-1761.42138516,0.00017177,2]
[405360828,1771086641358,-1761.42138516,0.00017177,2]
[405360830,1771086641367,-1761.42138516,0.00017177,2]
[405360832,1771086641376,-1761.42138516,0.00017177,2]
[405360834,1771086641385,-1761.42138516,0.00017177,2]
[405360836,1771086641394,-1761.42138516,0.00017177,2]
[405360838,1771086641402,-1761.42138516,0.00017177,2]
[405360840,1771086641411,-1761.42138516,0.00017177,2]
[405360842,1771086641421,-1761.42138516,0.00017177,2]
[405360844,1771086641430,-1775.40091999,0.00017177,2]
[405360846,1771086641440,-1775.40091999,0.00017177,2]
[405360848,1771086641457,-1775.40091999,0.00017177,2]
[405360850,1771086641467,-1775.40091999,0.00017177,2]
[405360852,1771086641477,-1775.40091999,0.00017177,2]
[405360854,1771086641487,-1775.40091999,0.00017177,2]
[405360856,1771086641498,-1775.40091998,0.00017177,2]
[405360858,1771086641507,-801.7932,0.00017178,2]
[405360860,1771086641517,-87058.4894,0.00017178,2]
[405360863,1771086641528,-2500.0,0.00017178,2]
[405360864,1771086641538,-208.16,0.000172,2]
[405360867,1771086641548,-500.0,0.00017213,2]
[405360869,1771086641557,-500.0,0.00017268,2]
[405360870,1771086641566,-151.0,0.00017268,2]
[405360873,1771086641575,-151.0,0.00017268,2]
[405360874,1771086641584,-151.0,0.00017268,2]
[405360877,1771086641598,-151.0,0.00017268,2]
[405360879,1771086641607,-151.0,0.00017268,2]
[405360898,1771086641758,-151.0,0.00017268,2]
[405360901,1771086641790,-151.0,0.00017268,2]
[405360903,1771086641800,-151.0,0.00017268,2]
[405360905,1771086641809,-151.0,0.00017268,2]
[405360907,1771086641818,-151.0,0.00017268,2]
[405360909,1771086641827,-151.0,0.00017268,2]
[405360910,1771086641837,-151.0,0.00017268,2]
[405360911,1771086641846,-151.0,0.00017268,2]
[405360912,1771086641856,-151.0,0.00017268,2]
[405360913,1771086641865,-151.0,0.00017268,2]
[405360914,1771086641875,-151.0,0.00017268,2]
[405360915,1771086641884,-151.0,0.00017268,2]
[405360916,1771086641893,-151.0,0.00017268,2]
[405360917,1771086641902,-151.0,0.00017268,2]
[405360918,1771086641911,-151.0,0.00017268,2]
[405360919,1771086641921,-309.0,0.00017342,2]
[405360920,1771086641930,-500.0,0.00017379,2]
[405360922,1771086641939,-500.0,0.00017379,2]
[405360924,1771086641948,-500.0,0.00017379,2]
[405360926,1771086641959,-500.0,0.00017379,2]
[405360928,1771086641968,-500.0,0.00017379,2]
[405360930,1771086641977,-500.0,0.00017379,2]
[405360932,1771086641986,-500.0,0.00017379,2]
[405360934,1771086641995,-500.0,0.00017379,2]
[405360936,1771086642005,-500.0,0.00017379,2]
[405360938,1771086642014,-500.0,0.00017379,2]
[405360940,1771086642023,-500.0,0.00017379,2]
[405360943,1771086642033,-500.0,0.00017379,2]
[405360945,1771086642042,-500.0,0.00017379,2]
[405360947,1771086642051,-3648.3563,0.000174,2]
[405360949,1771086642060,-190.4,0.00017703,2]
[405360950,1771086642070,-250.0,0.00017704,2]
[405360952,1771086642079,-600.0,0.00017739,2]
[405360954,1771086642088,-293.04,0.00017739,2]
[405360956,1771086642098,-481.49288601,0.00017742,2]
[405360959,1771086642107,-3322.85070146,0.00017776,2]
[405360960,1771086642116,-500.0,0.00017808,2]
[405360962,1771086642126,-500.0,0.00017808,2]
[405360964,1771086642135,-263.52862181,0.00017808,2]
[405360966,1771086642144,-800.0,0.00017808,2]
[405360969,1771086642154,-1177.61095544,0.000179,2]
[405360970,1771086642163,-1039.49751124,0.000179,2]
[405360972,1771086642173,-1039.49751109,0.000179,2]
[405360974,1771086642184,-1039.49751109,0.000179,2]
[405360976,1771086642193,-1039.49751109,0.000179,2]
[405360978,1771086642203,-1039.49751109,0.000179,2]
[405360980,1771086642212,-769.71989825,0.000179,2]
[405360982,1771086642221,-1039.49751109,0.000179,2]
[405360984,1771086642230,-1039.49751109,0.000179,2]
[405360986,1771086642240,-1039.49751109,0.000179,2]
[405360988,1771086642249,-1039.49751109,0.000179,2]
[405360990,1771086642259,-1039.49751109,0.000179,2]
[405360992,1771086642268,-1039.49751109,0.000179,2]
[405360994,1771086642279,-1039.49751109,0.000179,2]
[405360996,1771086642288,-1039.49751109,0.000179,2]
[405360998,1771086642298,-1039.49751109,0.000179,2]
[405361000,1771086642306,-1039.49751109,0.000179,2]
[405361002,1771086642315,-1039.49751109,0.000179,2]
[405361004,1771086642325,-1039.49751109,0.000179,2]
[405361006,1771086642334,-176.9094697,0.000179,2]
[405361008,1771086642343,-1039.49751109,0.000179,2]
[405361010,1771086642352,-3531.0,0.00017973,2]
[405361012,1771086642362,-277.8239451,0.0001799,2]
[405361013,1771086642371,-277.8239451,0.0001799,2]
[405361014,1771086642380,-300.0,0.00017999,2]
[405361015,1771086642390,-150.0,0.00018,7]
[405361016,1771086642399,-1161294.86855269,0.00018,2]
[405361017,1771086642408,-3100225.56824525,0.00018,2]
[405361018,1771086642418,-401.13007058,0.00018,2]
[405361019,1771086642427,-151.0,0.00018,2]
[405361020,1771086642436,-292.946264,0.00018,2]
[405361021,1771086642446,-151.0,0.00018,2]
[405361023,1771086642459,-151.0,0.00018,2]
[405361025,1771086642468,-151.0,0.00018,2]
[405361026,1771086642477,-151.0,0.00018,2]
[405361027,1771086642486,-935.0,0.00018081,2]
[405361028,1771086642497,-481.49288601,0.00018185,2]
[405361029,1771086642506,-1000.0,0.00018274,2]
[405361030,1771086642515,-195.54,0.00018316,2]
[405361032,1771086642525,-3322.85070146,0.00018473,2]
[405361034,1771086642535,-420.0,0.00018543,2]
[405361036,1771086642545,-300.0,0.00018543,2]
[405361038,1771086642554,-481.49288601,0.00018629,2]
[405361039,1771086642564,-1680.0,0.00018635,2]
[405361040,1771086642573,-500.0,0.000188,2]
[405361041,1771086642582,-500.0,0.000188,2]
[405361042,1771086642592,-500.0,0.000188,2]
[405361043,1771086642602,-500.0,0.000188,2]
[405361044,1771086642611,-500.0,0.000188,2]
[405361045,1771086642620,-500.0,0.000188,2]
[405361046,1771086642630,-500.0,0.000188,2]
[405361047,1771086642639,-500.0,0.000188,2]
[405361048,1771086642648,-403.40447753,0.000188,2]
[405361049,1771086642657,-500.0,0.000188,2]
[405361050,1771086642667,-500.0,0.000188,2]
[405361051,1771086642676,-500.0,0.000188,2]
[405361052,1771086642686,-500.0,0.000188,2]
[405361053,1771086642695,-500.0,0.000188,2]
[405361054,1771086642704,-500.0,0.000188,2]
[405361055,1771086642714,-500.0,0.000188,2]
[405361056,1771086642723,-500.0,0.000188,2]
[405361057,1771086642732,-250.0,0.000188,2]
[405361058,1771086642742,-151.0,0.000188,2]
[405361059,1771086642751,-500.0,0.000188,2]
[405361060,1771086642760,-500.0,0.000188,2]
[405361061,1771086642770,-250.0,0.000188,2]
[405361062,1771086642779,-250.0,0.000188,2]
[405361063,1771086642789,-500.0,0.000188,2]
[405361064,1771086642798,-250.0,0.000188,2]
[405361065,1771086642807,-500.0,0.000188,2]
[405361066,1771086642816,-500.0,0.000188,2]
[405361067,1771086642826,-500.0,0.000188,2]
[405361068,1771086642835,-500.0,0.000188,2]
[405361069,1771086642844,-500.0,0.000188,2]
[405361070,1771086642853,-500.0,0.000188,2]
[405361071,1771086642863,-257.91778498,0.000188,2]
[405361072,1771086642871,-151.0,0.00018855,2]
[405361073,1771086642881,-1120.79768166,0.00018904,2]
[405361074,1771086642890,-426.94,0.00018906,2]
[405361075,1771086642899,-151.0,0.0001891,2]
[405361076,1771086642908,-151.0,0.00018965,2]
[405361077,1771086642917,-1621.8856968,0.00019,2]
[405361078,1771086642927,-151.0,0.0001902,2]
[405361079,1771086642936,-481.49288601,0.00019072,2]
[405361080,1771086642946,-151.0,0.00019075,2]
[405361081,1771086642955,-200.0,0.00019082,2]
[405361082,1771086642965,-151.0,0.0001913,2]
[405361083,1771086642975,-3322.85070146,0.00019171,2]
[405361084,1771086642985,-151.0,0.00019185,2]
[405361085,1771086642995,-151.0,0.0001924,2]
[405361086,1771086643004,-1589.0,0.00019252,2]
[405361087,1771086643014,-354.34,0.00019317,2]
[405361088,1771086643024,-200.0,0.00019317,2]
[405361089,1771086643033,-9999.99,0.00019339,2]
[405361090,1771086643043,-9999.99,0.00019339,2]
[405361092,1771086643053,-4600.68,0.00019339,2]
[405361093,1771086643062,-1887.78,0.00019339,2]
[405361094,1771086643072,-4489.33,0.00019339,2]
[405361096,1771086643081,-299.99,0.00019339,7]
[405361098,1771086643091,-999.99,0.00019339,2]
[405361100,1771086643100,-150.99,0.00019339,2]
[405361102,1771086643111,-9999.99,0.00019339,2]
[405361104,1771086643121,-267.46074303,0.00019348,2]
[405361105,1771086643130,-190.4,0.00019348,2]
[405361106,1771086643140,-481.49288601,0.00019516,2]
[405361107,1771086643150,-159.9945197,0.00019608,2]
[405361108,1771086643160,-2224.75,0.00019857,2]
[405361109,1771086643170,-3322.85070146,0.00019869,2]
[405361110,1771086643179,-277.35679052,0.00019896,2]
[405361111,1771086643191,-481.49288601,0.00019959,2]
[405361112,1771086643200,-655.832,0.00019999,2]
[405361113,1771086643212,-500.0,0.0002,2]
[405361114,1771086643221,-500.0,0.0002,2]
[405361115,1771086643231,-500.0,0.0002,2]
[405361116,1771086643241,-501.57073766,0.0002,2]
[405361117,1771086643250,-266.3746021,0.0002,2]
[405361118,1771086643260,-163.71249719,0.0002,2]
[405361119,1771086643270,-506.731515,0.0002,2]
[405361120,1771086643279,-500.0,0.0002,2]
[405361121,1771086643289,-500.98416353,0.0002,2]
[405361122,1771086643299,-500.0,0.0002,2]
[405361123,1771086643308,-500.95146285,0.0002,2]
[405361124,1771086643318,-501.89441625,0.0002,2]
[405361125,1771086643328,-500.0,0.0002,2]
[405361126,1771086643337,-500.0,0.0002,2]
[405361127,1771086643347,-500.0,0.0002,2]
[405361128,1771086643356,-501.15291654,0.0002,2]
[405361129,1771086643365,-268.45431515,0.0002,2]
[405361130,1771086643375,-500.0,0.0002,2]
[405361131,1771086643384,-500.0,0.0002,2]
[405361132,1771086643394,-500.0,0.0002,2]
[405361133,1771086643403,-500.0,0.0002,2]
[405361134,1771086643413,-502.8656939,0.0002,2]
[405361135,1771086643422,-163.48714988,0.0002,2]
[405361136,1771086643432,-513.56902932,0.0002,2]
[405361137,1771086643441,-160.62077314,0.0002,2]
[405361138,1771086643457,-500.0,0.0002,2]
[405361139,1771086643466,-337.17435494,0.0002,2]
[405361140,1771086643480,-160.86559938,0.0002,2]
[405361141,1771086643491,-501.02884299,0.0002,2]
[405361142,1771086643502,-500.0,0.0002,2]
[405361143,1771086643511,-500.0,0.0002,2]
[405361144,1771086643521,-500.0,0.0002,2]
[405361145,1771086643531,-501.28525982,0.0002,2]
[405361146,1771086643542,-501.54792962,0.0002,2]
[405361147,1771086643551,-505.13641801,0.0002,2]
[405361148,1771086643560,-500.0,0.0002,2]
[405361149,1771086643570,-500.0,0.0002,2]
[405361150,1771086643580,-162.50254481,0.0002,2]
[405361151,1771086643590,-161.13407404,0.0002,2]
[405361152,1771086643599,-500.0,0.0002,2]
[405361153,1771086643609,-500.0,0.0002,2]
[405361154,1771086643619,-308.11619089,0.0002,2]
[405361155,1771086643628,-500.0,0.0002,2]
[405361156,1771086643638,-500.0,0.0002,2]
[405361157,1771086643648,-500.0,0.0002,2]
[405361158,1771086643657,-500.0,0.0002,2]
[405361159,1771086643666,-500.0,0.0002,2]
[405361160,1771086643676,-500.0,0.0002,2]
[405361161,1771086643685,-501.52639534,0.0002,2]
[405361162,1771086643695,-500.67431897,0.0002,2]
[405361163,1771086643706,-500.0,0.0002,2]
[405361164,1771086643716,-500.0,0.0002,2]
[405361165,1771086643726,-520.0,0.0002,6]
[405361166,1771086643735,-16076.51567268,0.0002,2]
[405361167,1771086643908,-150.0,0.00020145,2]
[405361168,1771086643918,-1067.85081923,0.00020145,2]
[405361169,1771086643927,-150.0,0.00020145,2]
[405361170,1771086643937,-2854.10416644,0.00020145,2]
[405361171,1771086643947,-150.0,0.00020145,2]
[405361172,1771086643957,-150.0,0.00020145,2]
[405361173,1771086643967,-364.82983299,0.00020182,2]
[405361174,1771086643976,-587.0,0.00020254,2]
[405361175,1771086643986,-769.7198982,0.0002036,2]
[405361176,1771086643995,-196.07302619,0.00020376,2]
[405361177,1771086644004,-481.49288601,0.00020403,2]
[405361178,1771086644014,-3190.11042138,0.00020419,2]
[405361179,1771086644023,-1500.9254364,0.00020419,2]
[405361180,1771086644033,-1720.14982419,0.00020419,2]
[405361181,1771086644042,-333.6141339,0.00020444,2]
[405361182,1771086644052,-2351.0,0.00020455,2]
[405361183,1771086644061,-243.0,0.00020508,2]
[405361184,1771086644071,-1000.0,0.00020548,2]
[405361185,1771086644081,-417.3630813,0.00020548,2]
[405361186,1771086644090,-1000.0,0.00020548,2]
[405361187,1771086644100,-1000.0,0.00020548,2]
[405361188,1771086644110,-485.58699205,0.00020548,2]
[405361189,1771086644120,-1000.0,0.00020548,2]
[405361190,1771086644130,-1000.0,0.00020548,2]
[405361191,1771086644140,-1000.0,0.00020548,2]
[405361192,1771086644149,-1000.0,0.00020548,2]
[405361193,1771086644159,-1000.0,0.00020548,2]
[405361194,1771086644168,-1000.0,0.00020548,2]
[405361195,1771086644178,-1000.0,0.00020548,2]
[405361196,1771086644187,-1000.0,0.00020548,2]
[405361197,1771086644201,-1000.0,0.00020548,2]
[405361198,1771086644212,-1000.0,0.00020548,2]
[405361199,1771086644223,-1000.0,0.00020548,2]
[405361200,1771086644232,-1129.11523071,0.00020548,2]
[405361201,1771086644243,-1000.0,0.00020548,2]
[405361202,1771086644252,-1000.0,0.00020548,2]
[405361203,1771086644262,-1000.0,0.00020548,2]
[405361204,1771086644272,-1000.0,0.00020548,2]
[405361205,1771086644281,-1000.0,0.00020548,2]
[405361206,1771086644291,-1000.0,0.00020548,2]
[405361207,1771086644301,-1000.0,0.00020548,2]
[405361208,1771086644311,-1000.0,0.00020548,2]
[405361209,1771086644320,-1000.0,0.00020548,2]
[405361210,1771086644330,-503.32963806,0.00020548,2]
[405361211,1771086644340,-156.15,0.00020548,2]
[405361212,1771086644349,-1000.0,0.00020558,2]
[405361213,1771086644358,-3322.85070146,0.00020566,2]
[405361214,1771086644368,-328.03955418,0.00020836,2]
[405361215,1771086644378,-481.49288601,0.00020846,2]
[405361216,1771086644388,-190.4,0.00020993,2]
[405361217,1771086644399,-9036.0,0.00021,2]
[405361218,1771086644409,-1000.0,0.00021,6]
[405361219,1771086644419,-5837.02493761,0.00021,2]
[405361220,1771086644429,-25125.62096197,0.00021,2]
[405361221,1771086644438,-1196.31609989,0.00021,2]
[405361222,1771086644451,-197.46191902,0.00021,2]
[405361223,1771086644461,-38242.16975165,0.00021,2]
[405361224,1771086644471,-151.0,0.00021,2]
[405361225,1771086644480,-151.0,0.00021,2]
[405361226,1771086644491,-1500.0,0.00021096,2]
[405361227,1771086644500,-1500.0,0.00021096,2]
[405361228,1771086644511,-1348.88505806,0.00021096,2]
[405361229,1771086644521,-1500.0,0.00021096,2]
[405361230,1771086644533,-1500.0,0.00021096,2]
[405361231,1771086644543,-640.426295,0.00021096,2]
[405361232,1771086644554,-1000.0,0.00021096,2]
[405361233,1771086644563,-1500.0,0.00021096,2]
[405361234,1771086644573,-560.97294517,0.00021096,2]
[405361235,1771086644582,-911.55685535,0.00021096,2]
[405361236,1771086644592,-1501.93175398,0.00021096,2]
[405361237,1771086644601,-1500.0,0.00021096,2]
[405361238,1771086644611,-692.85283733,0.00021096,2]
[405361239,1771086644621,-1500.0,0.00021096,2]
[405361240,1771086644630,-1000.0,0.00021096,2]
[405361241,1771086644640,-1500.0,0.00021096,2]
[405361242,1771086644651,-1500.0,0.00021096,2]
[405361243,1771086644660,-650.6644918,0.00021096,2]
[405361244,1771086644670,-1000.0,0.00021096,2]
[405361245,1771086644680,-1000.0,0.00021096,2]
[405361246,1771086644689,-1500.0,0.00021096,2]
[405361247,1771086644699,-1500.0,0.00021096,2]
[405361248,1771086644710,-1208.0,0.00021222,2]
[405361249,1771086644720,-918.0,0.00021222,2]
[405361250,1771086644730,-151.0,0.00021222,2]
[405361251,1771086644741,-151.0,0.00021222,2]
[405361252,1771086644751,-1288.0,0.00021222,2]
[405361253,1771086644764,-5969.0,0.00021222,2]
[405361254,1771086644774,-2417.309,0.00021222,2]
[405361255,1771086644784,-3322.85070146,0.00021264,2]
[405361258,1771086644794,-150.0,0.00021512,2]
[405361261,1771086644803,-1660.42812495,0.00021644,2]
[405361262,1771086644813,-2000.0,0.00021644,2]
[405361263,1771086644822,-2007.79483991,0.00021644,2]
[405361264,1771086644832,-1500.0,0.00021644,2]
[405361265,1771086644841,-2000.0,0.00021644,2]
[405361266,1771086644851,-354.34,0.00021732,2]
[405361267,1771086644860,-3322.85070146,0.00021962,2]
[405361268,1771086644870,-1000.0,0.00022,8]
[405361269,1771086644880,-151.0,0.00022,2]
[405361270,1771086644890,-151.0,0.00022,2]
[405361271,1771086644900,-151.0,0.00022,2]
[405361272,1771086644910,-151.0,0.00022,2]
[405361273,1771086644919,-151.0,0.00022,2]
[405361274,1771086644929,-493.0,0.00022122,2]
[405361276,1771086644939,-182.61813293,0.00022159,2]
[405361278,1771086644948,-986.63272279,0.00022192,2]
[405361279,1771086644957,-2286.60585807,0.00022192,2]
[405361280,1771086644968,-151.0,0.000222,2]
[405361281,1771086644977,-300.0,0.00022299,2]
[405361282,1771086644986,-167908.0,0.000224,2]
[405361283,1771086644997,-3292.0,0.00022453,2]
[405361284,1771086645007,-151.0,0.000226,2]
[405361285,1771086645016,-250.0,0.00022635,2]
[405361286,1771086645027,-250.0,0.00022635,2]
[405361287,1771086645036,-161.0,0.00022635,2]
[405361288,1771086645045,-190.4,0.00022639,2]
[405361289,1771086645055,-3322.85070146,0.00022659,2]
[405361290,1771086645064,-5531.0,0.000227,3]
[405361291,1771086645074,-769.7198982,0.0002282,2]
[405361292,1771086645084,-1000.0,0.00022842,2]
[405361293,1771086645093,-160.0,0.00023,2]
[405361294,1771086645103,-5531.0,0.000231,5]
[405361295,1771086645113,-364.82983299,0.00023285,2]
[405361296,1771086645123,-3322.85070146,0.00023357,2]
[405361297,1771086645132,-396.0,0.00023457,2]
[405361298,1771086645142,-196.07302619,0.00023674,2]
[405361299,1771086645156,-849.19,0.000238,2]
[405361300,1771086645165,-2216.0,0.00023987,2]
[405361301,1771086645175,-151.0,0.000241,2]
[405361302,1771086645185,-214.285831,0.000241,2]
[405361303,1771086645194,-151.0,0.000241,2]
[405361304,1771086645204,-151.0,0.000241,2]
[405361305,1771086645214,-151.0,0.000241,2]
[405361306,1771086645223,-151.0,0.000241,2]
[405361307,1771086645233,-151.0,0.000241,2]
[405361308,1771086645243,-165.95132,0.000241,2]
[405361309,1771086645252,-151.0,0.000241,2]
[405361310,1771086645262,-2216.0,0.00024115,7]
[405361311,1771086645271,-354.34,0.00024147,2]
[405361312,1771086645281,-2216.0,0.00024182,2]
[405361313,1771086645290,-426.94,0.00024211,2]
[405361314,1771086645300,-600.0,0.00024218,2]
[405361315,1771086645310,-293.04,0.00024218,2]
[405361316,1771086645319,-2216.0,0.0002422,2]
[405361317,1771086645329,-1204.0,0.00024222,2]
[405361318,1771086645339,-918.0,0.00024222,2]
[405361319,1771086645348,-1288.0,0.00024222,2]
[405361320,1771086645358,-5969.0,0.00024222,2]
[405361321,1771086645368,-328.71263928,0.0002423,2]
[405361322,1771086645378,-2219.0,0.00024233,2]
[405361323,1771086645387,-264.0,0.00024279,2]
[405361324,1771086645397,-2216.0,0.00024282,2]
[405361325,1771086645406,-190.4,0.00024284,2]
[405361326,1771086645416,-2216.0,0.00024347,2]
[405361327,1771086645425,-3001.28952833,0.00024399,2]
[405361328,1771086645435,-355.46673821,0.00024434,2]
[405361329,1771086645444,-2216.0,0.000245,2]
[405361330,1771086645454,-159.9945197,0.0002451,2]
[405361331,1771086645469,-328.03955418,0.00024594,2]
[405361332,1771086645479,-4609.0,0.00024647,2]
[405361333,1771086645488,-2216.0,0.00024655,2]
[405361334,1771086645499,-151.0,0.00024658,2]
[405361335,1771086645509,-1000.0,0.00024658,2]
[405361336,1771086645519,-2216.0,0.00024666,2]
[405361337,1771086645529,-2216.0,0.00024808,2]
[405361338,1771086645541,-2216.0,0.00024849,2]
[405361339,1771086645551,-2216.0,0.00025042,2]
[405361340,1771086645561,-1000.0,0.00025127,2]
[405361341,1771086645570,-2216.0,0.00025169,2]
[405361342,1771086645580,-2216.0,0.00025224,2]
[405361343,1771086645591,-195.54,0.00025241,2]
[405361344,1771086645601,-769.7198982,0.00025279,2]
[405361345,1771086645611,-153.311329,0.00025376,30]
[405361346,1771086645621,-555.805363,0.00025377,30]
[405361347,1771086645631,-2216.0,0.00025453,2]
[405361348,1771086645640,-2216.0,0.00025484,2]
[405361349,1771086645651,-452.0,0.00025506,10]
[405361350,1771086645660,-500.0,0.00025699,2]
[405361351,1771086645670,-151.0,0.000257,2]
[405361352,1771086645679,-151.0,0.000257,2]
[405361353,1771086645688,-151.0,0.000257,2]
[405361354,1771086645698,-2216.0,0.00025791,2]
[405361355,1771086645707,-190.4,0.00025929,2]
[405361356,1771086645717,-2216.0,0.00025934,2]
[405361357,1771086645727,-2216.0,0.0002605,2]
[405361358,1771086645736,-2219.0,0.00026055,7]
[405361359,1771086645746,-2216.0,0.00026076,2]
[405361360,1771086645755,-2216.0,0.0002611,2]
[405361361,1771086645765,-2216.0,0.00026322,2]
[405361362,1771086645908,-2216.0,0.00026339,2]
[405361363,1771086645918,-364.82983299,0.00026389,2]
[405361364,1771086645928,-195.52,0.00026406,2]
[405361365,1771086645938,-354.34,0.00026562,120]
[405361366,1771086645947,-218.18,0.000266,14]
[405361367,1771086645957,-196.07302619,0.00026971,2]
[405361368,1771086645967,-6453.0,0.00027054,2]
[405361369,1771086645977,-202.8713995,0.00027164,2]
[405361370,1771086645986,-1288.0,0.00027222,2]
[405361371,1771086645996,-5969.0,0.00027222,2]
[405361372,1771086646005,-150.0,0.00027369,2]
[405361373,1771086646014,-300.0,0.00027397,2]
[405361374,1771086646024,-1000.0,0.00027411,2]
[405361375,1771086646033,-190.4,0.00027574,2]
[405361376,1771086646043,-426.94,0.00027586,2]
[405361377,1771086646052,-600.0,0.0002759,2]
[405361378,1771086646062,-293.04,0.0002759,2]
[405361379,1771086646072,-151.0,0.000276,7]
[405361380,1771086646081,-151.0,0.000276,7]
[405361381,1771086646091,-151.0,0.000276,7]
[405361382,1771086646101,-769.7198982,0.00027739,2]
[405361383,1771086646111,-25000.0,0.00028,7]
[405361384,1771086646120,-328.03955418,0.00028352,2]
[405361385,1771086646130,-195.54,0.00028481,2]
[405361386,1771086646140,-1177.61095543,0.00028607,2]
[405361387,1771086646150,-176.90946969,0.00028607,2]
[405361388,1771086646159,-354.34,0.00028976,120]
[405361389,1771086646168,-190.4,0.00029219,2]
[405361390,1771086646177,-500.0,0.00029256,14]
[405361391,1771086646187,-570.62748206,0.00029256,14]
[405361392,1771086646196,-500.0,0.00029256,14]
[405361393,1771086646205,-159.9945197,0.00029412,2]
[405361394,1771086646216,-277.8239451,0.00029484,2]
[405361395,1771086646226,-364.82983299,0.00029493,2]
[405361396,1771086646235,-151.0,0.00029494,7]
[405361397,1771086646245,-151.0,0.00029494,7]
[405361398,1771086646254,-151.0,0.00029494,7]
[405361399,1771086646273,-209.428383,0.00029494,7]
[405361400,1771086646284,-25000.0,0.00029494,10]
[405361401,1771086646294,-151.0,0.000295,7]
[405361402,1771086646304,-500.0,0.00029502,9]
[405361403,1771086646314,-25000.0,0.00029503,10]
[405361404,1771086646324,-2066.0,0.00029696,2]
[405361405,1771086646334,-1475.0872239,0.00029973,2]
[405361406,1771086646344,-496.0,0.00030071,15]
[405361407,1771086646354,-497.0,0.00030078,15]
[405361408,1771086646364,-500.0,0.00030078,14]
[405361409,1771086646374,-769.7198982,0.00030199,2]
[405361410,1771086646384,-843.379,0.00030222,2]
[405361411,1771086646393,-164.0,0.00030258,3]
[405361412,1771086646403,-196.07302619,0.00030269,2]
[405361413,1771086646413,-3715.6519191,0.00030299,2]
[405361414,1771086646423,-21106.6865702,0.00030299,2]
[405361415,1771086646432,-324740.83096672,0.00030299,2]
[405361418,1771086646880,-422.28753396,0.00030299,2]
[405361419,1771086646909,-115905.79373582,0.00030299,2]
[405361420,1771086646919,-151.0,0.00030299,7]
[405361421,1771086646928,-151.0,0.00030299,7]
[405361422,1771086646938,-205.161971,0.00030299,7]
[405361423,1771086646947,-151.0,0.00030299,7]
[405361424,1771086646956,-151.0,0.00030299,7]
[405361425,1771086646967,-151.0,0.000303,7]
[405361426,1771086646976,-151.0,0.000303,7]
[405361427,1771086646985,-124826.47465343,0.000303,2]